Cogmind - Beta 15 @@@ ROGUE MODE // 2025.05.31 @ 22:54:24 Player: alice_fexa Result: Destroyed by H-77 Assassin with Coil Gun Performance ------------- Evolutions (7) 3500 Regions Visited (24) 4800 Robots Destroyed (375) 1875 Value Destroyed (21973) 21973 Prototype IDs (127) 2540 Alien Tech Used (5) 1000 Bonus (14487) 14487 TOTAL SCORE: 50175 Bonus ------- Triggered High Security 500 High Alert Combat Kills 9361 Awakened Behemoth Slayer 1000 Met Imprinter 300 Triggered Deep Caves Wall 500 Exposed GOLEM Chamber 500 Met Zhirov 300 Met Warlord at Base 500 MAIN.C Attacked Warlord 500 Warlord Defense Kills 1554 Scanned by Researcher 500 Friendly Fire -1028 Cogmind --------- Core Integrity 0/1300 Matter 31/300 Energy 2450/2470 System Corruption 37% Temperature Cool (0) Movement Walking (37) Location -3/Protoforge Parts ------- > --- POWER (2) -------- Experimental Antimatter Reactor Concept Zero-point Core > --- PROPULSION (6) --- Armored-Gravjet Exoskeleton > --- UTILITY (9) ------ Scrap Engine Concept Antigrav Storage Unit Concept Chromion Battery Concept Chromion Battery Spectral Analyzer Experimental Remote Shield > --- WEAPON (4) ------- Heavy Dispersion Rifle Concept Rapid Grenade Launcher Concept Arcsight Missile Launcher > --- INVENTORY (25) --- Improved Quantum Reactor Experimental Coolant Injector Concept Thermoelectric Network Concept Thermoelectric Network Experimental Energy Well (600) Concept Chromion Battery (800) Concept Chromion Battery (800) Concept Chromion Battery (209) Concept NT7 Matterbank (750) Concept NT7 Matterbank (750) Experimental Active Sensor Suite Advanced Transmission Jammer Concept Network Penetrator Advanced Component Analysis Suite Concept Matter Streamer Crosscalibrator High-powered Transdimensional Reconstructor Concept Blasthammer CR-A16's Behemoth Slayer Peak State ------------ > --- POWER ------------ ZP-Quantum Core > --- PROPULSION ------- Armored-Gravjet Exoskeleton > --- UTILITY ---------- Armored Scrap Engine Concept Antigrav Storage Unit Spectral Analyzer Concept Weapon Articulator Concept Core Analysis Suite Experimental Reaction Control System Concept Phase Shift Module Concept Energy Mantle > --- WEAPON ----------- Concept XC Strikerail Hvy. Zero Rail Construct/C > --- INVENTORY -------- Experimental Antimatter Reactor Concept Zero-point Core Experimental Coolant Injector Concept Thermoelectric Network Concept Thermoelectric Network Concept Chromion Battery Concept Chromion Battery Concept Chromion Battery Concept NT7 Matterbank Concept NT7 Matterbank Experimental Active Sensor Suite Advanced Transmission Jammer Experimental Reaction Control System Advanced Powered Armor Experimental Remote Shield Concept Energy Mantle Advanced Component Analysis Suite Concept Matter Streamer Concept Matter Streamer Crosscalibrator High-powered Transdimensional Reconstructor Vortex Shotgun Concept Arcsight Missile Launcher CR-A16's Behemoth Slayer [Rating: 241] Favorites ----------- Power Constructs Engine Reinforced Ion Engine Power Core Constructs Reactor Experimental Antimatter Reactor Propulsion Constructs Treads Light Treads Leg Constructs Wheel Compact Wheel Hover Unit Cooled Gravmag System Utility High-capacity Storage Unit Device Armored Scrap Engine Storage High-capacity Storage Unit Processor Advanced Signal Interpreter Protection Hardened Light Armor Plating Weapon Constructs Energy Gun Heavy Particle Gun Energy Cannon Heavy Plasma Cannon Ballistic Gun Assault Rifle Ballistic Cannon Constructs Launcher Long-range Missile Launcher Impact Weapon Flail Slashing Weapon Phasing Sabre Piercing Weapon CR-A16's Behemoth Slayer Build | -11 -10 -10 -8 -8 -8 -6 -6 -6 -6 -6 -5 -5 -5 -5 -5 -4 -4 -4 -4 -4 -3 -3 -3 -3 ------- Run | Yrd Mat Sub Mat Sto Rec Fac Low Low Zio Dee Pro Fac Upp Upp War Pro Fac Upp Upp Zhi Pro Res Qua Frg Slots Evolved 14 | . . . 4 . . 4 . . . . . 2 . . . . 2 . . . . 2 . . Power 1 | . . . . . . . . . . . . 1 . . . . . . . . . . . . Propulsion 4 | . . . 2 . . 1 . . . . . . . . . . 1 . . . . . . . Utility 7 | . . . 2 . . 2 . . . . . 1 . . . . 1 . . . . 1 . . Weapon 2 | . . . . . . 1 . . . . . . . . . . . . . . . 1 . . Parts Attached 156 | 7 8 2 19 4 6 10 2 . 4 6 1 7 4 3 7 . 4 2 2 3 . 7 3 45 Power 10 | 1 . . 2 . . . . . . . . . . 2 . . 1 . 1 1 . . . 2 Engine 4 | 1 . . 2 . . . . . . . . . . 1 . . . . . . . . . . Core 2 | . . . . . . . . . . . . . . 1 . . . . . . . . . 1 Reactor 4 | . . . . . . . . . . . . . . . . . 1 . 1 1 . . . 1 Propulsion 14 | 2 2 . 3 4 2 . . . . . . . . . . . . 1 . . . . . . Treads 11 | 2 1 . 3 4 . . . . . . . . . . . . . 1 . . . . . . Leg . | . . . . . . . . . . . . . . . . . . . . . . . . . Wheel 2 | . 1 . . . 1 . . . . . . . . . . . . . . . . . . . Hover 1 | . . . . . 1 . . . . . . . . . . . . . . . . . . . Flight . | . . . . . . . . . . . . . . . . . . . . . . . . . Utility 93 | 1 5 1 7 . 4 6 1 . 1 4 1 6 2 . 5 . 1 1 1 2 . 7 3 34 Device 55 | . 1 1 6 . 2 3 1 . . . . 5 1 . 1 . . 1 1 1 . 5 3 23 Storage 10 | 1 3 . . . . . . . . . 1 . . . . . . . . . . . . 5 Processor 13 | . . . . . . 2 . . . . . 1 . . 3 . 1 . . . . 2 . 4 Hackware . | . . . . . . . . . . . . . . . . . . . . . . . . . Protection 15 | . 1 . 1 . 2 1 . . 1 4 . . 1 . 1 . . . . 1 . . . 2 Artifact . | . . . . . . . . . . . . . . . . . . . . . . . . . Weapon 39 | 3 1 1 7 . . 4 1 . 3 2 . 1 2 1 2 . 2 . . . . . . 9 Energy Gun 12 | 1 . . 5 . . . . . . 1 . . . . 2 . . . . . . . . 3 Energy Cannon 3 | . . . . . . 1 . . . 1 . . . . . . . . . . . . . 1 Ballistic Gun 6 | 2 . 1 1 . . . . . . . . 1 . . . . . . . . . . . 1 Ballistic Cannon 1 | . 1 . . . . . . . . . . . . . . . . . . . . . . . Launcher 8 | . . . . . . 1 1 . 1 . . . 1 . . . 1 . . . . . . 3 Special Weapon . | . . . . . . . . . . . . . . . . . . . . . . . . . Impact Weapon 3 | . . . 1 . . 1 . . . . . . . . . . . . . . . . . 1 Slashing Weapon 3 | . . . . . . . . . 2 . . . . . . . 1 . . . . . . . Piercing Weapon 3 | . . . . . . 1 . . . . . . 1 1 . . . . . . . . . . Special Melee Weapon . | . . . . . . . . . . . . . . . . . . . . . . . . . Unidentified Prototypes 41 | . . . 2 . 4 . . . . 4 . 1 . . 5 . . 1 . 4 . . 2 18 Corrupted Parts 1 | . . . . . . . . . . . 1 . . . . . . . . . . . . . System Corruption 7 | . . . . . . . . . . . 7 . . . . . . . . . . . . . Parts Lost 23 | . . 1 . . . . . . . 2 . . . 1 . . . . . . . . . 19 Power 3 | . . . . . . . . . . . . . . 1 . . . . . . . . . 2 Propulsion 1 | . . . . . . . . . . . . . . . . . . . . . . . . 1 Utility 12 | . . 1 . . . . . . . 2 . . . . . . . . . . . . . 9 Weapon 7 | . . . . . . . . . . . . . . . . . . . . . . . . 7 Highest Loss Streak 15 | . . 1 . . . . . . . 1 . . . 1 . . . . . . . . . 15 To Critical Strikes 6 | . . . . . . . . . . . . . . . . . . . . . . . . 6 Average Backups 19 | 2 10 19 19 20 19 19 19 19 19 18 18 18 19 19 19 20 20 20 20 20 20 19 19 21 Power . | . 2 2 1 1 . . . . . . . . . . . . . 1 . . . 1 . . Propulsion 1 | 1 3 10 5 4 3 1 1 1 1 1 1 1 1 . . . . . . . . . . . Utility 10 | . 1 3 4 6 8 10 12 12 12 11 11 10 10 11 11 11 10 11 11 12 12 11 11 14 Weapon 6 | . 3 4 8 8 7 7 6 6 6 5 6 7 8 8 8 9 8 8 8 7 7 6 6 4 Tool/Special . | . . . . . . . . . . . . . . . . . . . . . . . . . Unused Backups 96 | . 6 . 11 1 10 6 1 . . 4 . 10 1 . 3 . 1 . 2 1 . 3 3 33 Power 10 | . 4 . 1 . 1 . . . . . . . . . 1 . . . . . . . 2 1 Propulsion 9 | . 1 . 2 1 4 . . . . 1 . . . . . . . . . . . . . . Utility 47 | . . . 1 . 2 1 . . . 3 . 6 1 . 2 . . . 2 . . 3 1 25 Weapon 28 | . 1 . 7 . 3 5 1 . . . . 4 . . . . 1 . . 1 . . . 5 Tool/Special 2 | . . . . . . . . . . . . . . . . . . . . . . . . 2 Average Slot Usage (%) 65 | . 99 99 99 100 72 59 60 60 60 57 60 57 58 63 63 64 56 56 56 56 57 57 56 55 Engine 2 | . 14 14 9 9 6 . . . . 1 6 . . 4 5 5 . . . . . . . . Core 1 | . . . . . 2 6 6 6 6 4 . 2 . . . . . . . 1 . . . 2 Reactor 2 | . . . . . . . . . . . . 1 5 5 5 5 4 5 5 3 5 4 4 2 Treads 7 | . 24 24 35 36 13 5 6 6 6 6 6 5 5 5 5 5 . . . . . . . . Flight 1 | . . . . . . . . . . . . . . . . . 4 5 4 5 5 4 4 2 Device 14 | . 10 13 18 18 11 13 13 13 12 12 20 17 10 12 11 10 14 14 15 14 15 13 13 16 Storage 6 | . 14 14 9 9 9 6 6 6 6 6 6 5 5 5 5 5 5 5 5 5 5 4 4 5 Processor 8 | . . . . . . 5 6 6 6 6 6 11 11 11 11 17 15 15 15 15 15 19 19 12 Protection 3 | . 3 . 8 9 9 5 6 6 6 5 . . 5 4 3 . . . . . . . . . Energy Gun 2 | . . . 12 18 9 1 3 . . . . . . . . . . . . . . . . . Ballistic Gun 1 | . 16 14 5 . . 2 . . . . . . . . . . . . . . . . . . Ballistic Cannon 3 | . 11 14 . . 1 . 2 6 6 6 6 5 5 5 5 5 5 5 5 5 5 4 4 2 Slashing Weapon 1 | . . . . . . . . . 5 . . 4 3 . 4 . 4 4 4 3 2 . . . Piercing Weapon 1 | . . . . . . 5 . . . . . . 1 4 . . . . . 1 . 3 4 2 Peak Build Rating 241 | 6 11 11 30 38 48 72 79 80 80 84 82 91 91 97 105 103 130 126 130 130 127 151 155 241 Average Rating 96 | 4 9 9 22 33 41 65 74 79 78 80 81 88 88 95 95 100 120 121 122 124 126 143 151 186 On Entrance 80 | . 6 11 10 29 38 44 72 79 79 78 82 80 90 89 95 100 99 122 122 121 126 127 151 152 Naked Turns . | . . . . . . . . . . . . . . . . . . . . . . . . . Heaviest Build 127 | 13 51 53 67 66 66 68 75 76 79 76 69 76 81 89 96 96 80 76 76 89 89 97 92 127 Greatest Support 195 | 40 40 40 80 80 81 110 110 110 110 110 110 110 110 110 110 110 121 80 139 139 139 139 139 195 Greatest Overweight (x) 3 | . 3 3 . . 3 . . . . . . . . . . . . . . . . . . 1 Average Overweight (x) . | . . 1 . . . . . . . . . . . . . . . . . . . . . . Largest Inventory Capacity 25 | 8 20 20 20 20 20 20 20 20 20 20 20 20 20 20 20 20 20 20 20 20 20 20 20 25 Average Capacity 20 | 7 13 20 20 20 20 20 20 20 20 20 20 20 20 20 20 20 20 20 20 20 20 20 20 22 Most Carried 25 | 4 20 20 20 20 20 20 20 20 20 20 19 20 20 20 20 20 20 20 20 20 20 20 20 25 Average Carried 19 | 2 10 19 19 19 19 19 19 20 19 19 18 19 19 19 19 20 19 20 19 20 20 19 19 21 Final Capacity 25 | 8 20 20 20 20 20 20 20 20 20 20 20 20 20 20 20 20 20 20 20 20 20 20 20 25 Final Carried 20 | 4 20 20 20 20 20 20 20 20 20 19 19 20 20 20 20 20 20 20 20 20 20 20 20 20 Scrap Engine Consumption 167 | . . . . . 46 24 3 2 2 2 1 7 5 9 9 . 11 4 4 3 . 3 1 31 Constructs Created 4 | . . . . . 3 . . . . . . . . . . . . . . . . . . 1 Constructs Modified 76 | . . . . . 12 16 2 . . 1 . 6 1 . . . 12 1 5 2 . 3 . 15 Class Distribution -------------------- 77% | Construct 14% | Mutant 4% | Scavenger-Mutant Dominant Class ---------------- Mutant | -10/Materials Mutant | -10/Subcaves Scavenger-Mutant | -8/Materials Mutant | -8/Storage Construct | -8/Recycling Construct | -6/Factory Construct | -6/Lower Caves Construct | -6/Lower Caves Construct | -6/Zion Construct | -6/Deep Caves Construct | -5/Proximity Caves Construct | -5/Factory Construct | -5/Upper Caves Construct | -5/Upper Caves Construct | -5/Warlord Construct | -4/Proximity Caves Construct | -4/Factory Construct | -4/Upper Caves Construct | -4/Upper Caves Construct | -4/Zhirov Construct | -3/Proximity Caves Construct | -3/Research Construct | -3/Quarantine Construct | -3/Protoforge Resources | -11 -10 -10 -8 -8 -8 -6 -6 -6 -6 -6 -5 -5 -5 -5 -5 -4 -4 -4 -4 -4 -3 -3 -3 -3 ----------- Run | Yrd Mat Sub Mat Sto Rec Fac Low Low Zio Dee Pro Fac Upp Upp War Pro Fac Upp Upp Zhi Pro Res Qua Frg Matter Collected 13324 | 236 250 131 488 40 101 229 85 146 77 417 125 695 150 114 452 119 583 113 56 100 205 405 326 7681 Remotely 2371 | . . . . . . . . . . . . . . . . . . . . . . . . 2371 Salvage Created 20613 | . 326 63 961 90 221 463 64 295 251 569 170 891 280 426 1077 223 1527 220 189 245 141 771 671 10479 Parts 981 | . 28 2 34 8 12 35 2 16 11 14 4 39 20 22 30 11 93 9 5 2 6 40 29 509 Haulers Intercepted 9 | . 2 . 1 1 . 1 . . . . . 2 . . . . . . . . . 1 1 . Recyclers Shooed 1 | . . . . . . . . . . . . 1 . . . . . . . . . . . . Parts Field Recycled . | . . . . . . . . . . . . . . . . . . . . . . . . . Retrieved Matter . | . . . . . . . . . . . . . . . . . . . . . . . . . Parts Self-Destructed 79 | . . . . . . . . 3 . . 5 . 38 10 . 8 . . 8 1 6 . . . Prevented 6 | . . . . . . . . . . . . . . 3 . 3 . . . . . . . . Kills | -11 -10 -10 -8 -8 -8 -6 -6 -6 -6 -6 -5 -5 -5 -5 -5 -4 -4 -4 -4 -4 -3 -3 -3 -3 ------- Run | Yrd Mat Sub Mat Sto Rec Fac Low Low Zio Dee Pro Fac Upp Upp War Pro Fac Upp Upp Zhi Pro Res Qua Frg Combat Hostiles Destroyed 348 | . 9 2 19 3 4 7 . 2 4 51 2 5 3 2 15 2 23 . . . 2 9 3 181 Melee 2 | . . . . . . . . . . . . . . . . . 1 . . . . . . 1 Guns 37 | . 6 2 17 3 4 3 . . . . . . . . . . . . . . . . . 2 Cannons 155 | . 3 . . . . 3 . 2 1 3 . 5 2 1 15 . 17 . . . 2 3 3 95 AOE 132 | . . . . . . 1 . . 3 46 2 . . . . . 3 . . . . 5 . 72 Classes Destroyed 37 | . 4 1 4 . 1 2 1 2 1 4 1 1 1 . 3 1 . . . . 1 . . 9 Worker 9 | . . . 1 . . 2 . . . . . 1 . . . . 3 . . . . 1 . 1 Builder 11 | . . . . . 2 . . . . . . . . . . . 2 . . . . 1 1 5 Hauler 9 | . 2 . 1 1 . 1 . . . . . 2 . . . . . . . . . 1 1 . Recycler 4 | . . . . . . 1 . . . . . 2 . . . . . . . . . . 1 . Carrier 8 | . . . . . . . . . . . . . . . . . . . . . . . . 8 Minesweeper 2 | . . . . . . . . . . . . . . . . 1 . . 1 . . . . . Mechanic 7 | . . . . . . . . . . . . . . . 1 . . . . . . . 1 5 Operator 5 | . . . . . . . . . . . . 1 . . . . 1 . . . . 3 . . Drone 23 | . . . . . . . . . . . 2 . . . . . . . . . . . . 21 Watcher 22 | . 2 . 2 . . 1 . . . . . 4 . . . . 3 . . . . 4 2 4 Swarmer 27 | . 6 . 3 3 . 6 . . . . . . . . . . 4 . . . . 5 . . Saboteur 8 | . . . . . . . . . . . . . . . 1 . . . . . . . . 7 Grunt 73 | . 3 . 8 . . . . . . . . . . . 10 1 7 . . . . . . 44 Brawler 10 | . . . . . . . . . . . . . . 1 2 . . . . . . . . 7 Duelist 12 | . . . . . . . . . . . . . . . . . . . . . . . . 12 Protector 9 | . . . . . . . . . . . . . . . 2 . . . . . 1 . . 6 Researcher 5 | . . . . . . . . . . . . . . . . . . . . . . . . 5 Sentry 16 | . . . 5 . . . . . . . . . . . . . . . . . . 2 . 9 Demolisher 1 | . . . . . . . . . . . . . . . . . . . . . 1 . . . Specialist 6 | . . . 2 . . . . . . . . . . . . . . . . . . . . 4 Hunter 10 | . . . 1 . . . . . . . . . 2 . . . 2 . . . . . . 5 Programmer 45 | . . . . . . 1 . 1 . . . 5 . . . . 10 . . . . 1 3 24 Q-Series 2 | . . . . . . . . . . . . . . . . . . . . . . . . 2 Behemoth 5 | . . . . . . . . . . . . . 1 1 . 1 . . . . . 1 . 1 Hotshot 7 | . . . . . . . . . . . . . . . . . . . . . . . . 7 Decapitator 10 | . . . . . . . . . . . . . . . . . . . . . . . . 10 Immortal 4 | . . . . . . . . . . . . . . . . . . . . . . . . 4 Investigator 1 | . . . . . . . . . . . . . . . . . . . . . . . . 1 Striker 3 | . . . . . . . . . . . . . . . . . . . . . . . . 3 Executioner 2 | . . . . . . . . . . . . . . . . . . . . . . . . 2 Alpha 7 2 | . . . . . . . . . . . . . . . . . . . . . . . . 2 V-Series 11 | . . . . . . . . . . . . . . . . . . . . . . . . 11 Subdweller 6 | . . 2 . . 4 . . . . . . . . . . . . . . . . . . . Z-Light 5 | . . . . . . . . . . 5 . . . . . . . . . . . . . . Decomposer 1 | . . . . . . . . 1 . . . . . . . . . . . . . . . . Packrat 3 | . . . . . . . . . . . 2 . . . . . . 1 . . . . . . Samaritan 13 | . . . . . . . . 5 . . . . 1 4 . . . 3 . . . . . . Thief 1 | . . . . . . . . 1 . . . . . . . . . . . . . . . . Assembler 1 | . . . . . . . . . . 1 . . . . . . . . . . . . . . Assembled 45 | . . . . . . . . . . 45 . . . . . . . . . . . . . . Golem 1 | . . . . . . . . . . 1 . . . . . . . . . . . . . . Thug 3 | . . . . . . . . . . . . . . . 3 . . . . . . . . . Savage 1 | . . . . . . . 1 . . . . . . . . . . . . . . . . . Mutant 3 | . . . . . . . . . 3 . . . . . . . . . . . . . . . Best Kill Streak 38 | . 3 2 3 3 2 4 . 1 4 38 1 5 2 1 5 2 7 . 1 . 2 7 2 14 Combat Bots Only 37 | . 3 2 3 3 1 3 . 1 4 37 1 4 2 1 5 1 6 . . . 2 5 2 14 Max Kills in Single Turn 18 | . 1 1 2 2 1 1 1 1 3 18 1 1 1 1 2 1 2 1 1 . 1 3 1 9 Gunslinging 1 | . . . . 1 . . . . . . . . . . . . . . . . . . . . Exploded 18 | . . . . . . 1 . . 3 18 1 . . . . . 2 . . . . 2 . 9 Melee 1 | . . . . . . . . . . . . . . . . . 1 . . . . . . 1 Uniques/NPCs Destroyed 1 | . . . . . . . . . 1 . . . . . . . . . . . . . . . Imprinter (-6/Zion) Combat | -11 -10 -10 -8 -8 -8 -6 -6 -6 -6 -6 -5 -5 -5 -5 -5 -4 -4 -4 -4 -4 -3 -3 -3 -3 -------- Run | Yrd Mat Sub Mat Sto Rec Fac Low Low Zio Dee Pro Fac Upp Upp War Pro Fac Upp Upp Zhi Pro Res Qua Frg Hostile Shots Fired 1747 | . 27 10 94 12 9 28 . 14 24 61 6 21 55 6 1 21 101 . . . . 26 15 1216 Missed 884 | . 5 2 25 2 5 9 . 6 13 14 2 9 20 . . 9 38 . . . . 13 10 702 Hits 863 | . 22 8 69 10 4 19 . 8 11 47 4 12 35 6 1 12 63 . . . . 13 5 514 Melee 24 | . . . . . . . . 1 . . . . . . . . . . . . . . . 23 Projectile 839 | . 22 8 69 10 4 19 . 7 11 47 4 12 35 6 1 12 63 . . . . 13 5 491 AOE 5 | . . . . . . . . . . . . . . . . . 1 . . . . . . 4 Critical Strikes 45 | . 1 . 2 1 . . . . 1 . . . 1 . . . 4 . . . . . 1 34 Damage Taken 16751 | . 201 174 1049 82 91 283 . 65 196 1299 78 262 677 136 105 301 1250 . . . . 272 122 10108 Core 1743 | . 32 60 123 . . . . . 20 163 20 83 94 . . 20 156 . . . . . . 972 Absorbed by Shields 5009 | . . . . . . . . . . . . . . . . . . . . . . 39 29 4941 Redirected to Shielding 37 | . 5 . . . . . . . . 32 . . . . . . . . . . . . . . Ignored by Resistances 6 | . . . . . . . . . . . . . 6 . . . . . . . . . . . Regen/Repaired (Parts) 4962 | . . . 123 . . 26 60 . . 28 . 261 130 . 49 . 1592 230 616 . . . . 1847 Core Remaining (%) 80 | 100 . 63 . . 77 . . . . . 76 . . . . 80 . . . . 86 . . . Volleys Fired 952 | . 24 9 74 9 10 32 5 26 6 45 7 32 9 16 49 15 66 . 6 . 35 23 18 436 Largest 3 | . 2 2 2 2 2 1 1 2 1 1 1 1 1 1 1 1 1 . 1 . 1 1 1 3 Hottest 454 | . 50 50 120 116 116 93 90 252 162 162 162 90 90 90 90 90 90 . 43 . 43 43 34 454 Shots Fired 1073 | . 48 18 144 18 19 32 6 27 6 45 7 32 9 16 49 15 66 . 6 . 35 23 18 434 Gun 241 | . 27 9 144 18 18 7 . . . . . . . . 1 . . . . . . . . 17 Cannon 761 | . 21 9 . . 1 24 6 27 2 28 5 32 9 16 47 9 61 . 6 . 34 20 18 386 Launcher 71 | . . . . . . 1 . . 4 17 2 . . . 1 6 5 . . . 1 3 . 31 Special . | . . . . . . . . . . . . . . . . . . . . . . . . . Kinetic 632 | . 48 18 30 . 1 2 . 4 2 16 5 32 9 16 47 9 61 . 6 . 34 20 18 254 Thermal 281 | . . . 114 18 18 14 6 23 . . . . . . . . . . . . . . . 88 Explosive 48 | . . . . . . 1 . . . 12 2 . . . . . 2 . . . 1 3 . 27 Electromagnetic 50 | . . . . . . 15 . . 4 17 . . . . 1 6 3 . . . . . . 4 Entropic 62 | . . . . . . . . . . . . . . . 1 . . . . . . . . 61 Robot Hit Streak 32 | . 10 6 26 27 13 11 14 8 8 8 3 5 1 4 10 . 6 . . . 4 5 7 32 Robot Miss Streak 5 | . 2 1 3 1 1 2 . 1 1 3 1 4 3 2 4 . 5 . . . 3 4 5 5 Penetration Max 2 | . . . . . . 1 . . . 1 . . . . 1 . 1 . . . . 1 . 2 Secondary Targets 1 | . . . . 1 . . . . . . . . . . . . . . . . . . . . Max Gunslinging Chain 1 | . . . . 1 . . . . . . . . . . . . . . . . . . . . Shots Hit Robots 758 | . 33 14 107 11 16 24 3 19 2 27 2 21 9 11 25 1 41 5 4 8 12 24 21 318 Core Hits 593 | . 17 4 40 4 10 18 2 11 9 82 4 15 3 3 17 2 39 2 3 2 5 18 9 274 Critical Kills 18 | . . . . . . . . . . . . . . . . . . . . . . . . 18 Critical Parts Destroyed 16 | . . . . . . . . . . . . . . . . . . . . . . . . 16 Critical Strikes 69 | . 1 . 6 . 2 . . . . . . 3 1 2 4 . 3 . . . . 5 4 38 Burn 8 | . . . 6 . 2 . . . . . . . . . . . . . . . . . . . Meltdown 10 | . . . . . . . . . . . . . . . . . . . . . . . . 10 Destroy 24 | . . . . . . . . . . . . . . . . . . . . . . . . 24 Blast 13 | . 1 . . . . . . . . . . . . . 4 . 3 . . . . 3 1 1 Sever 3 | . . . . . . . . . . . . 3 . . . . . . . . . . . . Impale 9 | . . . . . . . . . . . . . 1 2 . . . . . . . 2 3 1 Detonate 2 | . . . . . . . . . . . . . . . . . . . . . . . . 2 Melee Attacks 272 | . . . 1 . 1 31 . . . . . 50 9 12 6 1 39 6 7 8 1 30 33 37 Impact 2 | . . . 1 . 1 . . . . . . . . . . . . . . . . . . . Slashing 115 | . . . . . . . . . . . . 50 2 . 6 . 39 6 7 4 1 . . . Piercing 155 | . . . . . . 31 . . . . . . 7 12 . 1 . . . 4 . 30 33 37 Sneak Attacks 38 | . . . . . . 3 . . . . . 6 1 4 . . 2 5 1 . . 3 5 8 Combat Hostiles 2 | . . . . . . . . . . . . . . . . . . . . . . . . 2 Follow-up Attacks . | . . . . . . . . . . . . . . . . . . . . . . . . . Damage Inflicted 85425 | . 480 212 1911 232 330 651 96 675 423 4890 231 1538 392 720 2519 201 4123 456 296 553 991 3043 1646 58816 Guns 3579 | . 259 102 1911 232 315 119 . . . . . . . . . . . . . . . . . 641 Cannons 50225 | . 221 110 . . 15 249 96 675 88 684 88 742 124 355 2519 . 3039 . . . 901 1600 825 37894 Explosions 26348 | . . . . . . 71 . . 325 4206 143 . . . . 201 748 . . . 90 865 . 19699 Melee 5263 | . . . . . . 212 . . . . . 796 268 365 . . 336 456 296 553 . 578 821 582 Ramming 10 | . . . . . . . . . 10 . . . . . . . . . . . . . . . Kinetic 35724 | . 480 212 376 . 15 46 . 198 88 484 88 742 124 355 2519 . 3039 . . . 901 1600 825 23632 Thermal 21093 | . . . 1535 232 315 73 96 477 . 63 . . . . . . . . . . . . . 18302 Explosive 13661 | . . . . . . 71 . . . 3835 143 . . . . . 453 . . . 90 865 . 8204 Electromagnetic 1925 | . . . . . . 249 . . 325 508 . . . . . 201 295 . . . . . . 347 Impact . | . . . . . . . . . . . . . . . . . . . . . . . . . Slashing 2309 | . . . . . . . . . . . . 796 92 . . . 336 456 296 333 . . . . Piercing 2954 | . . . . . . 212 . . . . . . 176 365 . . . . . 220 . 578 821 582 Entropic 7749 | . . . . . . . . . . . . . . . . . . . . . . . . 7749 Highest Corruption 37 | . . . . . . 3 3 3 3 . 7 5 5 5 5 . 3 3 . . . 1 2 37 Average Corruption 8 | . . . . . . 2 3 3 3 . 7 4 5 5 5 . 2 2 . . . 1 1 14 Corruption Purged 3 | . . . . . . . . . . . . . . . . . . 3 . . . . . . Corruption Blocked . | . . . . . . . . . . . . . . . . . . . . . . . . . Effects 283 | . . . . . . 3 9 10 1 . . 17 20 17 1 . 4 6 . . . 4 8 183 Message Errors 61 | . . . . . . 1 1 1 . . . 2 7 2 . . 1 2 . . . 1 3 40 Matter Fused 58 | . . . . . . . 3 2 1 . . 7 2 5 1 . 1 2 . . . . . 34 Heat Flow Errors 37 | . . . . . . . 2 2 . . . 1 5 3 . . 1 . . . . . 1 22 Energy Discharges 34 | . . . . . . 1 2 1 . . . 3 3 3 . . 1 1 . . . . 2 17 Parts Rejected 11 | . . . . . . . . . . . . 1 . . . . . . . . . . . 10 Parts Fused 2 | . . . . . . . . 1 . . . . . . . . . . . . . 1 . . Data Loss (minor) 29 | . . . . . . . . 2 . . . 1 3 2 . . . . . . . 1 2 18 Data Loss (major) 17 | . . . . . . . . 1 . . . 2 . 2 . . . 1 . . . 1 . 10 Misfires 3 | . . . . . . . 1 . . . . . . . . . . . . . . . . 2 Alerts 4 | . . . . . . 1 . . . . . . . . . . . . . . . . . 3 Misdirections 11 | . . . . . . . . . . . . . . . . . . . . . . . . 11 Weapon Failures 16 | . . . . . . . . . . . . . . . . . . . . . . . . 16 Overload Shots 1 | . . . . . . . . . . . . . . . . . . . . . . . . 1 Overflow Damage 9081 | . . . . . . . . 48 . 313 . 106 63 285 73 22 235 197 31 61 20 551 536 6540 Projectiles 6082 | . . . . . . . . 48 . 76 . 17 . 5 73 . 220 . . . 20 422 372 4829 Explosions 1910 | . . . . . . . . . . 237 . . . . . 22 . . . . . 18 . 1633 Melee 1089 | . . . . . . . . . . . . 89 63 280 . . 15 197 31 61 . 111 164 78 Knockbacks 91 | . 3 1 . . 2 . . 2 . 3 . 1 . . 2 . 17 . . . 3 2 3 52 Impact . | . . . . . . . . . . . . . . . . . . . . . . . . . Kinetic 88 | . 3 1 . . 2 . . 2 . 3 . 1 . . 2 . 15 . . . 2 2 3 52 Secondary 3 | . . . . . . . . . . . . . . . . . 2 . . . 1 . . . Self-Inflicted Damage 108 | . . . . . . . . . . 28 . . . . . . . . . . . 13 . 67 Shots 5 | . . . . . . . . . . 1 . . . . . . . . . . . 1 . 3 Rammed 3 | . . . . . . . . . 3 . . . . . . . . . . . . . . . Targets Rammed 3 | . . . . . . . . . 3 . . . . . . . . . . . . . . . Kicked . | . . . . . . . . . . . . . . . . . . . . . . . . . Crushed . | . . . . . . . . . . . . . . . . . . . . . . . . . Highest Temperature 451 | . 6 . 46 . 22 161 241 451 108 352 120 121 277 183 144 107 215 . . . . . 187 223 Average Temperature 64 | . 3 . 16 . 13 56 74 75 53 97 48 28 99 77 49 31 49 . . . . . 105 89 Received Heat Transfer 1802 | . 36 24 396 27 15 . . . 72 231 36 . 159 12 12 57 163 . . . . . . 562 Effects 1 | . . . . . . . . 1 . . . . . . . . . . . . . . . . Interference 1 | . . . . . . . . 1 . . . . . . . . . . . . . . . . Siege Activations . | . . . . . . . . . . . . . . . . . . . . . . . . . Martial Activations . | . . . . . . . . . . . . . . . . . . . . . . . . . Shielding Activations . | . . . . . . . . . . . . . . . . . . . . . . . . . Robots Disrupted . | . . . . . . . . . . . . . . . . . . . . . . . . . Combat Hostiles . | . . . . . . . . . . . . . . . . . . . . . . . . . Robots Corrupted 7 | . . . . . . 1 . . . 2 . . . . . 2 2 . . . . . . . Combat Hostiles 5 | . . . . . . . . . . 2 . . . . . 1 2 . . . . . . . Parts Fried 24 | . . . . . . 3 . . 5 7 . . . . . 4 4 . . . . . . 1 Impact Corruptions 1 | . . . . . . . . . . . . . . . . . 1 . . . . . . . Robots Melted 12 | . . . 2 . . . . . . . . . . . . . . . . . . . . 10 Combat Hostiles 12 | . . . 2 . . . . . . . . . . . . . . . . . . . . 10 Parts Melted 25 | . . . 13 . 7 . . 3 . . . . . . . . . . . . . . . 2 Heat Transferred 16959 | . . . 3774 444 740 248 150 750 . 50 . . . . . . . . . . . . . 10803 Parts Sabotaged 1 | . . . . . . . . . . . . . . . . . . . . . . . . 1 Parts Stolen 1 | . . . . . . . . 1 . . . . . . . . . . . . . . . . Parts Stripped . | . . . . . . . . . . . . . . . . . . . . . . . . . Power Chain Reactions 2 | . . . . . . . . . . 1 . . . . . . . . . . . . . 1 Alert | -11 -10 -10 -8 -8 -8 -6 -6 -6 -6 -6 -5 -5 -5 -5 -5 -4 -4 -4 -4 -4 -3 -3 -3 -3 ------- Run | Yrd Mat Sub Mat Sto Rec Fac Low Low Zio Dee Pro Fac Upp Upp War Pro Fac Upp Upp Zhi Pro Res Qua Frg Maximum Alert Level 5 | . . . 1 . . 1 . . . . . . . . . . 2 . . . . 1 . 5 Low Security (%) 73 | 100 100 . 79 100 100 99 . . . . . 100 . . . . 76 . . . . 13 100 28 Level 1 7 | . . . 20 . . . . . . . . . . . . . 4 . . . . 86 . 3 Level 2 3 | . . . . . . . . . . . . . . . . . 18 . . . . . . 5 Level 3 3 | . . . . . . . . . . . . . . . . . . . . . . . . 12 Level 4 3 | . . . . . . . . . . . . . . . . . . . . . . . . 13 Level 5 5 | . . . . . . . . . . . . . . . . . . . . . . . . 22 High Security 3 | . . . . . . . . . . . . . . . . . . . . . . . . 13 Max Security . | . . . . . . . . . . . . . . . . . . . . . . . . . Peak Influence 4735 | . 78 . 274 149 49 200 . . . . . 125 . . . . 584 . . . . 269 110 4735 Initial 200 | . . . . 105 . 200 . . . . . 28 . . . . 14 . . . . 23 110 8 Average 371 | . 17 . 86 89 2 29 . . . . . 50 . . . . 161 . . . . 207 53 1299 Influence Increases 10919 | . 277 . 652 109 147 479 . 75 . . 100 485 245 85 335 220 907 . 10 15 205 551 314 5708 Destroy 0b10 Robot/C 5680 | . 180 . 380 60 . 140 . 20 . . . 100 60 40 260 40 460 . . . 20 180 60 3680 Destroy 0b10 Robot/NC 450 | . 20 . 20 5 10 25 . . . . 10 50 . 5 15 5 45 . 10 15 5 50 30 130 Destroy Leader 912 | . 48 . 106 12 . 24 . 10 . . . 42 20 10 . 10 106 . . . . 50 26 448 Successful Hack 352 | . 26 . 21 16 15 23 . . . . . 102 . . . . . . . . . 64 23 62 Select Force Hacks 120 | . . . . . 120 . . . . . . . . . . . . . . . . . . . Disable Machine 585 | . . . 30 15 . . . . . . . 45 . . . . 30 . . . . 45 75 345 Destroy Structure 970 | . 3 . 5 1 2 37 . . . . . 116 . . . . 146 . . . . 132 70 458 Advance Influence 200 | . . . . . . 200 . . . . . . . . . . . . . . . . . . Partial Spotted 150 | . . . . . . 15 . . . . . 15 . . . . . . . . . 30 15 75 Lose Combat Pursuer 1500 | . . . 90 . . 15 . 45 . . 90 15 165 30 60 165 120 . . . 180 . 15 510 Influence Decreases 6184 | . 277 . 400 361 147 478 1 75 . . 55 462 313 55 249 312 356 500 85 15 170 389 496 988 Entered New Map 682 | . . . . 147 . . 1 . . . . 17 26 . 30 116 10 214 15 . . 12 87 7 Time Decay 5085 | . 277 . 400 163 147 468 . 75 . . 55 445 287 55 219 196 346 286 70 15 170 367 315 729 Lost Part 190 | . . . . . . . . . . . . . . . . . . . . . . . . 190 Lost Ally 30 | . . . . . . 10 . . . . . . . . . . . . . . . 10 . 10 Purge Threat 197 | . . . . 51 . . . . . . . . . . . . . . . . . . 94 52 Squads Dispatched 74 | . 2 . 2 . . 5 . . . . . 8 . . . . 7 . . . . 5 3 42 Investigation 6 | . . . 1 . . . . . . . . 1 . . . . 1 . . . . 2 . 1 Extermination 27 | . . . . . . 5 . . . . . 4 . . . . 4 . . . . 3 3 8 Reinforcement 9 | . 2 . 1 . . . . . . . . 3 . . . . 1 . . . . . . 2 Assault 32 | . . . . . . . . . . . . . . . . . 1 . . . . . . 31 Garrison . | . . . . . . . . . . . . . . . . . . . . . . . . . Intercept . | . . . . . . . . . . . . . . . . . . . . . . . . . Searches Triggered . | . . . . . . . . . . . . . . . . . . . . . . . . . Construction Impeded . | . . . . . . . . . . . . . . . . . . . . . . . . . Haulers Reinforced 1 | . . . . . . . . . . . . 1 . . . . . . . . . . . . Active Scanning Responses . | . . . . . . . . . . . . . . . . . . . . . . . . . Cargo Convoy Interrupts 1 | . . . . . . . . . . . . 1 . . . . . . . . . . . . Stealth | -11 -10 -10 -8 -8 -8 -6 -6 -6 -6 -6 -5 -5 -5 -5 -5 -4 -4 -4 -4 -4 -3 -3 -3 -3 --------- Run | Yrd Mat Sub Mat Sto Rec Fac Low Low Zio Dee Pro Fac Upp Upp War Pro Fac Upp Upp Zhi Pro Res Qua Frg Distress Signals 37 | . 1 . 4 1 1 . . . . . . 1 . . 4 2 2 . . . 21 . . . Communications Jammed 30 | . . . . . . . . . . . . 7 . . . . 19 . . . . 1 . 3 Distress Signals 17 | . . . . . . . . . . . . 7 . . . . 6 . . . . 1 . 3 Times Spotted 602 | . 17 2 31 10 7 12 . 2 14 47 7 14 18 5 85 12 43 . . . 20 24 10 222 Peak Tracking Total 37 | . 3 2 5 4 1 4 . 4 9 37 5 3 7 2 10 4 4 . . . 3 4 1 23 Tactical Retreats 70 | . . . 4 . 2 1 . 2 1 5 3 1 3 2 4 5 6 . . . 11 . 1 19 Traps | -11 -10 -10 -8 -8 -8 -6 -6 -6 -6 -6 -5 -5 -5 -5 -5 -4 -4 -4 -4 -4 -3 -3 -3 -3 ------- Run | Yrd Mat Sub Mat Sto Rec Fac Low Low Zio Dee Pro Fac Upp Upp War Pro Fac Upp Upp Zhi Pro Res Qua Frg Traps Triggered 29 | . . . 1 . . 2 . . . . . 2 . . . . 1 . . . . 2 1 20 Indirectly . | . . . . . . . . . . . . . . . . . . . . . . . . . Trap Hack Attempts . | . . . . . . . . . . . . . . . . . . . . . . . . . Triggered . | . . . . . . . . . . . . . . . . . . . . . . . . . Disarmed . | . . . . . . . . . . . . . . . . . . . . . . . . . Reprogrammed . | . . . . . . . . . . . . . . . . . . . . . . . . . Reused . | . . . . . . . . . . . . . . . . . . . . . . . . . Traps Extracted . | . . . . . . . . . . . . . . . . . . . . . . . . . Installed . | . . . . . . . . . . . . . . . . . . . . . . . . . Triggered . | . . . . . . . . . . . . . . . . . . . . . . . . . Machines | -11 -10 -10 -8 -8 -8 -6 -6 -6 -6 -6 -5 -5 -5 -5 -5 -4 -4 -4 -4 -4 -3 -3 -3 -3 ---------- Run | Yrd Mat Sub Mat Sto Rec Fac Low Low Zio Dee Pro Fac Upp Upp War Pro Fac Upp Upp Zhi Pro Res Qua Frg Machines Disabled 58 | . . . 2 1 . . . . . 3 . 3 . . 1 . 2 1 . . . 3 6 36 Max in Single Turn 3 | . . . 1 1 . . . . . 1 . 1 . . 1 . 1 1 . . . 2 1 3 Garrison Access 2 | . . . . . . . . . . . . . . . . . . . . . . . 1 1 Machines Repaired . | . . . . . . . . . . . . . . . . . . . . . . . . . Machines Dismantled . | . . . . . . . . . . . . . . . . . . . . . . . . . Machines Sabotaged . | . . . . . . . . . . . . . . . . . . . . . . . . . Overloaded Fab Kills . | . . . . . . . . . . . . . . . . . . . . . . . . . Hacking | -11 -10 -10 -8 -8 -8 -6 -6 -6 -6 -6 -5 -5 -5 -5 -5 -4 -4 -4 -4 -4 -3 -3 -3 -3 --------- Run | Yrd Mat Sub Mat Sto Rec Fac Low Low Zio Dee Pro Fac Upp Upp War Pro Fac Upp Upp Zhi Pro Res Qua Frg Machines Accessed 107 | . 7 . 6 5 11 16 1 . . . . 16 . . 2 . 7 . 1 4 . 14 6 11 Terminals 71 | . 6 . 5 5 6 8 . . . . . 13 . . . . 2 . . . . 11 5 10 Fabricators 4 | . . . . . . 2 . . . . . . . . . . 1 . . . . 1 . . Repair Stations 1 | . . . 1 . . . . . . . . . . . . . . . . . . . . . Recycling Units 16 | . 1 . . . 4 4 . . . . . 3 . . . . 3 . . . . 1 . . Scanalyzers 1 | . . . . . . 1 . . . . . . . . . . . . . . . . . . Garrison Access 5 | . . . . . . 1 . . . . . . . . . . 1 . . . . 1 1 1 Total Hacks 268 | . 21 . 16 13 35 47 1 . . . . 28 . . 2 . 17 . 1 17 . 35 11 24 Successful 136 | . 14 . 7 7 20 17 1 . . . . 12 . . 2 . 5 . 1 17 . 15 6 12 Failed 132 | . 7 . 9 6 15 30 . . . . . 16 . . . . 12 . . . . 20 5 12 Catastrophic 36 | . . . 3 3 . 4 . . . . . 7 . . . . 4 . . . . 9 1 5 Database Lockouts . | . . . . . . . . . . . . . . . . . . . . . . . . . Manual 150 | . 16 . 12 5 21 27 . . 4 . . 17 . . . . 9 . . . . 18 7 14 Terminals 186 | . 20 . 13 13 20 30 . . . . . 23 . . . . 5 . . . . 30 10 22 Fabricators 12 | . . . . . . 5 . . . . . . . . . . 5 . . . . 2 . . Repair Stations 3 | . . . 3 . . . . . . . . . . . . . . . . . . . . . Recycling Units 35 | . 1 . . . 13 8 . . . . . 5 . . . . 6 . . . . 2 . . Scanalyzers 2 | . . . . . . 2 . . . . . . . . . . . . . . . . . . Garrison Access 7 | . . . . . . 2 . . . . . . . . . . 1 . . . . 1 1 2 Terminal Hacks 63 | . 6 . 2 6 5 3 1 . . . . 4 . . 2 . . . 1 17 . 7 2 7 Record 8 | . . . . . . . . . . . . . . . 1 . . . . 5 . . . 2 Part Schematic 4 | . . . . . . . . . . . . . . . . . . . . 4 . . . . Robot Analysis 8 | . 2 . . . 2 . . . . . . . . . . . . . . 4 . . . . Prototype ID Bank 5 | . . . . . 1 . . . . . . . . . . . . . . 4 . . . . Open Door 6 | . . . . 2 . . 1 . . . . . . . 1 . . . 1 . . 1 . . Branch Access Points 4 | . . . 1 . . 1 . . . . . 1 . . . . . . . . . 1 . . Terminal Index 4 | . . . . . . . . . . . . 1 . . . . . . . . . 1 1 1 Alert Level 1 | . . . . . . . . . . . . . . . . . . . . . . 1 . . Unreport Threat 4 | . . . . 1 . . . . . . . . . . . . . . . . . . 1 2 Locate Traps 9 | . 4 . . 1 . 2 . . . . . . . . . . . . . . . 1 . 1 Zone Layout 7 | . . . 1 2 . . . . . . . 2 . . . . . . . . . 2 . . Proto ID Catalog 1 | . . . . . . . . . . . . . . . . . . . . . . . . 1 Release Object 2 | . . . . . 2 . . . . . . . . . . . . . . . . . . . Fabricator Hacks 3 | . . . . . . 1 . . . . . . . . . . . . . . . 2 . . Network Status 1 | . . . . . . 1 . . . . . . . . . . . . . . . . . . Load Schematic 1 | . . . . . . . . . . . . . . . . . . . . . . 1 . . Build 1 | . . . . . . . . . . . . . . . . . . . . . . 1 . . Repair Station Hacks 2 | . . . 2 . . . . . . . . . . . . . . . . . . . . . Scan Component 1 | . . . 1 . . . . . . . . . . . . . . . . . . . . . Repair 1 | . . . 1 . . . . . . . . . . . . . . . . . . . . . Recycling Unit Hacks 12 | . 1 . . . 3 3 . . . . . 2 . . . . 2 . . . . 1 . . Retrieve Components 12 | . 1 . . . 3 3 . . . . . 2 . . . . 2 . . . . 1 . . Scanalyzer . | . . . . . . . . . . . . . . . . . . . . . . . . . Garrison Access Hacks 2 | . . . . . . . . . . . . . . . . . . . . . . . 1 1 Seal Access 2 | . . . . . . . . . . . . . . . . . . . . . . . 1 1 Unauthorized Hacks 54 | . 7 . 3 1 12 10 . . . . . 6 . . . . 3 . . . . 5 3 4 Terminals 41 | . 7 . 3 1 8 6 . . . . . 4 . . . . . . . . . 5 3 4 Assimilate 6 | . . . . . . 1 . . . . . 1 . . . . . . . . . 2 1 1 Botnet 21 | . 2 . 2 1 3 3 . . . . . 3 . . . . . . . . . 2 2 3 Operators 1 | . . . . . . . . . . . . . . . . . . . . . . 1 . . Skim 13 | . 5 . 1 . 5 2 . . . . . . . . . . . . . . . . . . Fabricators 7 | . . . . . . 4 . . . . . . . . . . 3 . . . . . . . Report 2 | . . . . . . 1 . . . . . . . . . . 1 . . . . . . . Liberate 3 | . . . . . . 2 . . . . . . . . . . 1 . . . . . . . Haulers 2 | . . . . . . 1 . . . . . . . . . . 1 . . . . . . . Repair Stations . | . . . . . . . . . . . . . . . . . . . . . . . . . Recycling Units 6 | . . . . . 4 . . . . . . 2 . . . . . . . . . . . . Monitor 1 | . . . . . . . . . . . . 1 . . . . . . . . . . . . Recyclers 1 | . . . . . . . . . . . . 1 . . . . . . . . . . . . Tunnel 4 | . . . . . 4 . . . . . . . . . . . . . . . . . . . Scanalyzers . | . . . . . . . . . . . . . . . . . . . . . . . . . Garrison Access . | . . . . . . . . . . . . . . . . . . . . . . . . . Data Cores Recovered 4 | . . . . . . . . . . . . 1 . . . . . . . . . 3 . . Used 1 | . . . . . . . . . . . . . . . . . . . . . . 1 . . Hacking Detections 89 | . 6 . 6 5 8 14 . . . . . 14 . . . . 7 . . . . 14 4 11 Full Trace Events 6 | . . . . 1 . . . . . . . 1 . . . . 1 . . . . 2 . 1 Feedback Events 1 | . . . . . . . . . . . . 1 . . . . . . . . . . . . Corruption 1 | . . . . . . . . . . . . 1 . . . . . . . . . . . . Feedback Blocked . | . . . . . . . . . . . . . . . . . . . . . . . . . Robot Schematics Acquired 3 | . . . . . . . . . . . . . . . . . . . . . . . . 3 Robots Built . | . . . . . . . . . . . . . . . . . . . . . . . . . Authchips . | . . . . . . . . . . . . . . . . . . . . . . . . . Time . | . . . . . . . . . . . . . . . . . . . . . . . . . Total Robot Build Rating . | . . . . . . . . . . . . . . . . . . . . . . . . . Part Schematics Acquired 13 | . . . . . . . . . . . . . . . . . . . . 4 . . . 9 Parts Built 1 | . . . . . . . . . . . . . . . . . . . . . . 1 . . Authchips . | . . . . . . . . . . . . . . . . . . . . . . . . . Time 62 | . . . . . . . . . . . . . . . . . . . . . . 62 . . Total Part Build Rating 7 | . . . . . . . . . . . . . . . . . . . . . . 7 . . Parts Repaired 1 | . . . 1 . . . . . . . . . . . . . . . . . . . . . Time 26 | . . . 26 . . . . . . . . . . . . . . . . . . . . . Parts Recycled . | . . . . . . . . . . . . . . . . . . . . . . . . . Recycled Matter . | . . . . . . . . . . . . . . . . . . . . . . . . . Retrieved Matter . | . . . . . . . . . . . . . . . . . . . . . . . . . Retrieved Components 40 | . 2 . . . 11 13 . . . . . 7 . . . . 4 . . . . 3 . . Parts Scanalyzed . | . . . . . . . . . . . . . . . . . . . . . . . . . Part Schematics Acquired . | . . . . . . . . . . . . . . . . . . . . . . . . . Parts Damaged . | . . . . . . . . . . . . . . . . . . . . . . . . . Bothacking | -11 -10 -10 -8 -8 -8 -6 -6 -6 -6 -6 -5 -5 -5 -5 -5 -4 -4 -4 -4 -4 -3 -3 -3 -3 ------------ Run | Yrd Mat Sub Mat Sto Rec Fac Low Low Zio Dee Pro Fac Upp Upp War Pro Fac Upp Upp Zhi Pro Res Qua Frg Used RIF Installer . | . . . . . . . . . . . . . . . . . . . . . . . . . Robots Hacked . | . . . . . . . . . . . . . . . . . . . . . . . . . Non-combat . | . . . . . . . . . . . . . . . . . . . . . . . . . Combat . | . . . . . . . . . . . . . . . . . . . . . . . . . Robot Hacks Applied . | . . . . . . . . . . . . . . . . . . . . . . . . . Relay Couplers Released . | . . . . . . . . . . . . . . . . . . . . . . . . . Fabnet Peak Effective % . | . . . . . . . . . . . . . . . . . . . . . . . . . Robots Rewired . | . . . . . . . . . . . . . . . . . . . . . . . . . Allies Hacked . | . . . . . . . . . . . . . . . . . . . . . . . . . Hacks Repelled . | . . . . . . . . . . . . . . . . . . . . . . . . . Allies | -11 -10 -10 -8 -8 -8 -6 -6 -6 -6 -6 -5 -5 -5 -5 -5 -4 -4 -4 -4 -4 -3 -3 -3 -3 -------- Run | Yrd Mat Sub Mat Sto Rec Fac Low Low Zio Dee Pro Fac Upp Upp War Pro Fac Upp Upp Zhi Pro Res Qua Frg Total Allies 5 | . . . . . . 1 . . . . . 1 . . . . . . . . . 1 1 1 Largest Group 1 | . . . . . . 1 . . . . . 1 . . . . . . . . . 1 1 1 Highest-Rated Group 45 | . . . . . . 10 . . . . . 26 . . . . . . . . . 26 26 45 Highest-Rated Ally 45 | . . . . . . 10 . . . . . 26 . . . . . . . . . 26 26 45 Total Orders 4 | . . . . . . . . . . . . 1 . . . . . . . . . 2 . 1 STAY 3 | . . . . . . . . . . . . 1 . . . . . . . . . 1 . 1 FOLLOW 1 | . . . . . . . . . . . . . . . . . . . . . . 1 . . Ally Attacks . | . . . . . . . . . . . . . . . . . . . . . . . . . Total Damage . | . . . . . . . . . . . . . . . . . . . . . . . . . Kills . | . . . . . . . . . . . . . . . . . . . . . . . . . Allies Corrupted . | . . . . . . . . . . . . . . . . . . . . . . . . . Allies Melted 1 | . . . . . 1 . . . . . . . . . . . . . . . . . . . Intel | -11 -10 -10 -8 -8 -8 -6 -6 -6 -6 -6 -5 -5 -5 -5 -5 -4 -4 -4 -4 -4 -3 -3 -3 -3 ------- Run | Yrd Mat Sub Mat Sto Rec Fac Low Low Zio Dee Pro Fac Upp Upp War Pro Fac Upp Upp Zhi Pro Res Qua Frg Active Infowar (turns) 20707 | . . . 136 . . 2212 393 442 609 613 354 1536 641 636 1137 1068 1811 638 1053 122 893 860 816 4737 Optics 15948 | . . . . . . . . . . . . 1536 641 636 1137 1068 1811 638 1053 122 893 860 816 4737 Sensors 13821 | . . . . . . 2212 7 4 . . 1 1492 553 636 703 1061 1649 638 1053 122 893 813 712 1272 IFF 2400 | . . . . . . . 386 438 609 613 353 . . . . . . . . . . . . 1 Structural 6 | . . . . . . . . . . . . . . . . . . . . . . . 5 1 Traps 1 | . . . . . . . . . . . . . . . . . . . 1 . . . . . Seismic 136 | . . . 136 . . . . . . . . . . . . . . . . . . . . . Jamming 8573 | . . . . . . . . . . . . 1106 29 113 . . 1807 529 1049 110 893 795 603 1539 ECM 1 | . . . . . . . . . . . . . . . . . . . . . . . . 1 Robot Analysis Total 8 | . 2 . . . 2 . . . . . . . . . . . . . . 4 . . . . Derelict Logs Recovered 10 | . . . . . . . . . 1 . . . 1 2 . 1 . 3 2 . . . . . Drone Launches . | . . . . . . . . . . . . . . . . . . . . . . . . . Drone Recoveries . | . . . . . . . . . . . . . . . . . . . . . . . . . Exploration | -11 -10 -10 -8 -8 -8 -6 -6 -6 -6 -6 -5 -5 -5 -5 -5 -4 -4 -4 -4 -4 -3 -3 -3 -3 ------------- Run | Yrd Mat Sub Mat Sto Rec Fac Low Low Zio Dee Pro Fac Upp Upp War Pro Fac Upp Upp Zhi Pro Res Qua Frg Turns Passed 28590 | 70 1424 314 1827 349 3257 2252 393 476 673 1252 354 1536 641 636 1137 1068 1811 638 1053 122 893 860 816 4738 Spaces Moved 25893 | 37 732 119 844 154 1612 2045 547 571 1013 1404 485 1658 757 813 946 952 1597 619 949 153 808 1353 1297 4428 Core 2 | 2 . . . . . . . . . . . . . . . . . . . . . . . . Treads 13604 | 35 575 104 844 154 645 1890 547 571 1013 1404 485 1658 757 813 946 952 186 . . . . . . 25 Legs 1742 | . . . . . . . . . . . . . . . . . 166 . . . . . . 1576 Wheels 1224 | . 157 15 . . 967 85 . . . . . . . . . . . . . . . . . . Hover . | . . . . . . . . . . . . . . . . . . . . . . . . . Flight 9321 | . . . . . . 70 . . . . . . . . . . 1245 619 949 153 808 1353 1297 2827 Fastest Speed 37 | 50 145 145 160 160 117 63 63 63 63 63 63 63 63 63 63 63 63 77 40 40 40 40 40 37 Average Speed 70 | 154 163 228 160 165 139 67 63 63 63 63 63 63 63 63 63 63 76 77 73 40 40 40 40 43 Slowest Speed 250 | 160 240 240 160 170 250 185 63 63 63 63 63 63 63 63 63 63 77 77 77 40 40 40 40 166 Overloaded Moves . | . . . . . . . . . . . . . . . . . . . . . . . . . Propulsion Burnouts . | . . . . . . . . . . . . . . . . . . . . . . . . . Robots Hopped 28 | . . . . . . . . . . . . . . . . . 4 . . . . 4 9 11 Potential Cave-ins 4 | . . . . . . . . . . . . 2 . . . . . . . . . . . 2 Cave-ins Triggered . | . . . . . . . . . . . . . . . . . . . . . . . . . Teleports 4 | . . . . . . . . . . . . . . . . . . . . . . . 4 . Exploration Rate (%) 63 | 4 97 8 65 35 99 41 76 66 85 72 61 50 78 83 90 73 33 80 80 60 69 33 90 56 Regions Visited 24 Branch Regions 18 Pre-discovered Areas 16 | . 2 . . . 7 . . . 3 . . . 1 . . . . . . 3 . . . . Known Exits Taken 20 | . . 1 1 . . 1 1 1 1 1 1 1 1 1 1 1 1 1 1 1 1 1 1 . Unknown Exits Taken 4 | 1 1 . . 1 1 . . . . . . . . . . . . . . . . . . . Scrap Searched 18 | . . . . . . . 2 . 1 . 1 . 2 4 . 1 . 2 3 . 2 . . . Spaces Dug 248 | . . . 1 . 1 35 2 2 . 26 21 36 1 12 2 11 39 . 4 . 5 13 11 26 Terrain Destroyed 855 | . . . 3 . 1 39 3 10 . 115 42 69 13 26 13 17 94 . 10 . 16 68 42 274 Melee 114 | . . . 1 . 1 21 . . . . . 30 1 3 2 . 23 . 3 . 1 11 7 10 Projectile 355 | . . . 2 . . 9 3 10 . 9 6 39 12 23 11 17 54 . 7 . 10 25 35 83 AOE 386 | . . . . . . 9 . . . 106 36 . . . . . 17 . . . 5 32 . 181 Terrain Rammed . | . . . . . . . . . . . . . . . . . . . . . . . . . Walls Destroyed . | . . . . . . . . . . . . . . . . . . . . . . . . . Machines Disabled . | . . . . . . . . . . . . . . . . . . . . . . . . . Actions | -11 -10 -10 -8 -8 -8 -6 -6 -6 -6 -6 -5 -5 -5 -5 -5 -4 -4 -4 -4 -4 -3 -3 -3 -3 --------- Run | Yrd Mat Sub Mat Sto Rec Fac Low Low Zio Dee Pro Fac Upp Upp War Pro Fac Upp Upp Zhi Pro Res Qua Frg Total 34618 | 47 915 145 1198 233 2614 2824 588 653 1040 1722 525 2048 892 898 1430 1402 2055 770 1286 200 1339 1596 1509 6689 Wait 6583 | . 119 10 199 61 942 670 31 45 6 228 29 243 102 51 377 429 312 134 309 23 495 152 126 1490 Move 25818 | 36 731 118 843 153 1611 2044 546 570 1012 1403 484 1657 756 812 945 951 1588 618 948 152 807 1344 1280 4409 Hop 23 | . . . . . . . . . . . . . . . . . 4 . . . . 4 7 8 Pick Up 220 | 3 20 2 25 1 10 15 1 . 3 8 1 18 3 1 11 1 7 . 3 1 . 7 9 70 Fast Attach 141 | 7 4 1 6 . 8 2 . 1 . 8 . 6 . 2 10 . 4 7 5 7 . 4 10 49 Attach 44 | . . 1 3 . . 4 . . . 3 1 3 . . 1 . 3 . . . . 3 1 21 Detach 16 | 1 2 . 1 . 3 1 . . . 1 . 2 . . . . 1 . . . . 2 . 2 Swap 231 | . 5 2 13 4 2 11 4 11 6 10 2 15 9 3 10 4 22 . . 2 1 16 12 67 Drop 303 | . 10 2 33 5 27 14 1 . 4 15 1 22 3 1 21 1 9 5 8 7 . 11 13 90 Fire 952 | . 24 9 74 9 10 32 5 26 6 45 7 32 9 16 49 15 66 . 6 . 35 23 18 436 Melee 272 | . . . 1 . 1 31 . . . . . 50 9 12 6 1 39 6 7 8 1 30 33 37 Ram . | . . . . . . . . . . . . . . . . . . . . . . . . . Kick . | . . . . . . . . . . . . . . . . . . . . . . . . . Crush 3 | . . . . . . . . . 3 . . . . . . . . . . . . . . . Escape Stasis 10 | . . . . . . . . . . . . . . . . . . . . . . . . 10 Rewire 1 | . . . . . . . . . . 1 . . . . . . . . . . . . . . Trap . | . . . . . . . . . . . . . . . . . . . . . . . . . Miscellaneous 1 | . . . . . . . . . . . . . 1 . . . . . . . . . . . Route ------- -11/Scrapyard -10/Materials (discovered 6 exits: [*Mat x3] / [*Min x2] / [*Sub]) -10/Subcaves (discovered 2 exits: *Mat x2) -8/Materials (discovered 4 exits: *Fac x3 / *Sto) -8/Storage (discovered 2 exits: Fac / *Rec) -8/Recycling -6/Factory (discovered 5 exits: *Fac x3 / *Low x2) -6/Lower Caves -6/Lower Caves (discovered 2 exits: *Fac / *Zio) -6/Zion -6/Deep Caves -5/Proximity Caves -5/Factory (discovered 6 exits: *Fac x2 / *Upp x2 / Ext x2) -5/Upper Caves -5/Upper Caves (discovered 2 exits: *Fac / *War) -5/Warlord -4/Proximity Caves -4/Factory (discovered 2 exits: *Res / *Upp) -4/Upper Caves -4/Upper Caves -4/Zhirov -3/Proximity Caves -3/Research (discovered 3 exits: [*Res] / *Qua x2) -3/Quarantine (discovered 3 exits: [*Res] / [*Sec] / *Frg) -3/Protoforge History --------- Turn | Location | Event 40 | -11/Scrapyard | Discovered new exit (range 16) 71 | -11/Scrapyard | Entered Materials 178 | -10/Materials | Discovered new exit (range 12) 308 | -10/Materials | Build established: Mutant 331 | -10/Materials | Discovered new exit (range 15) 573 | -10/Materials | Discovered new exit (range 9) 830 | -10/Materials | Discovered new exit (range 16) 1037 | -10/Materials | Learned 2 Storage zone layouts 1115 | -10/Materials | Learned location of Mines (-9) 1241 | -10/Materials | Learned Storage security intel 1288 | -10/Materials | Learned Storage security intel 1309 | -10/Materials | Discovered new exit (range 13) 1323 | -10/Materials | Learned Storage trap positions 1369 | -10/Materials | Learned 2 Mines zone layouts 1405 | -10/Materials | Discovered new exit (range 6) 1495 | -10/Materials | Entered Subcaves 1496 | -10/Subcaves | Approached by a straggling Scientist 1496 | -10/Subcaves | Identified exit to Materials 1758 | -10/Subcaves | A swath of the cavern ceiling suddenly collapsed 1809 | -10/Subcaves | Entered Materials 1809 | -8/Materials | Evolved 4 slots: Propulsion x2, Utility x2 2104 | -8/Materials | Build established: Scavenger-Mutant 2562 | -8/Materials | Discovered new exit (range 8) 2990 | -8/Materials | Discovered new exit (range 5) 3371 | -8/Materials | Repaired Lgt. Treads 3411 | -8/Materials | Build established: Mutant 3440 | -8/Materials | Identified exit to Storage 3516 | -8/Materials | Discovered new exit (range 16) 3636 | -8/Materials | Entered Storage 3637 | -8/Storage | Identified exit to Factory 3638 | -8/Storage | Loaded intel: 19 trap records 3796 | -8/Storage | Met 01-MTF 3961 | -8/Storage | Discovered new exit (range 15) 3985 | -8/Storage | Entered Recycling 3985 | -8/Recycling | Accompanied by 2 allies (01-MTF) 4499 | -8/Recycling | Discovered new exit (range 15) 4904 | -8/Recycling | Learned Factory fabricator intel 4957 | -8/Recycling | Learned location of Zion (-6) 5001 | -8/Recycling | Learned 12 Factory zone layouts 5024 | -8/Recycling | Entered Scraplab 5034 | -8/Recycling | Found Prototype Device 5034 | -8/Recycling | Identified Scrap Engine 5075 | -8/Recycling | Learned Storage security intel 5725 | -8/Recycling | Build established: Construct 7242 | -8/Recycling | Entered Factory 7242 | -6/Factory | Evolved 4 slots: Propulsion x1, Utility x2, Weapon x1 7243 | -6/Factory | Identified exit to Factory 7244 | -6/Factory | Identified exit to Lower Caves 7245 | -6/Factory | Loaded intel: 6 fabricator locations 7568 | -6/Factory | Discovered exit to Factory (range 13) 9494 | -6/Factory | Entered Lower Caves 9757 | -6/Lower Caves | Encountered a Warlord checkpoint 9780 | -6/Lower Caves | Discovered new exit (range 9) 9835 | -6/Lower Caves | Found DRS Beacon 9883 | -6/Lower Caves | Identified exit to Lower Caves 9887 | -6/Lower Caves | Entered another Lower Caves area 9899 | -6/Lower Caves | Discovered exit to Factory (range 9) 10229 | -6/Lower Caves | Discovered new exit (range 7) 10242 | -6/Lower Caves | Encountered a Warlord checkpoint 10362 | -6/Lower Caves | Identified exit to Zion 10363 | -6/Lower Caves | Entered Zion 10391 | -6/Zion | System corruption cleaned by Quarantine Array 10438 | -6/Zion | Learned 8 Factory zone layouts 10844 | -6/Zion | Found CR-A16's Pointy Stick 10887 | -6/Zion | Met Imprinter 10977 | -6/Zion | Attacked by Zionites 10984 | -6/Zion | Destroyed Imprinter 10989 | -6/Zion | Extracted access codes from Imprinter's data core 11023 | -6/Zion | Opened final containment barrier to the Deep Caves 11034 | -6/Zion | Discovered new exit (range 5) 11034 | -6/Zion | Saw the warning signs outside the Deep Caves entrance 11036 | -6/Zion | Identified exit to Deep Caves 11036 | -6/Zion | Entered Deep Caves 11132 | -6/Deep Caves | Found Prototype Protection 11132 | -6/Deep Caves | Identified Zio. Heavy Carapace 11142 | -6/Deep Caves | Z-Facility disabled 11223 | -6/Deep Caves | Found Prototype Protection 11223 | -6/Deep Caves | Identified Zio. Weapon Casing 11502 | -6/Deep Caves | Discovered new exit (range 6) 11858 | -6/Deep Caves | Found Zio. Heavy Carapace 11995 | -6/Deep Caves | Destroyed AG-08436 12187 | -6/Deep Caves | Triggered Deep Caves wall 12187 | -6/Deep Caves | Spotted AS-00079 12195 | -6/Deep Caves | Exposed GOLEM chamber 12195 | -6/Deep Caves | Spotted AS-55396 12210 | -6/Deep Caves | Destroyed AS-55396 12215 | -6/Deep Caves | Spotted AG-39409 12231 | -6/Deep Caves | Destroyed 37 combat bots 12287 | -6/Deep Caves | Identified exit to Proximity Caves 12288 | -6/Deep Caves | Entered Proximity Caves 12634 | -5/Proximity Caves | Discovered exit to Factory (range 6) 12642 | -5/Proximity Caves | Entered Factory 12642 | -5/Factory | Evolved 2 slots: Power x1, Utility x1 12643 | -5/Factory | Identified exit to Extension 12644 | -5/Factory | Identified exit to Upper Caves 12780 | -5/Factory | Discovered new exit (range 10) 12824 | -5/Factory | Identified exit to Factory 13243 | -5/Factory | Discovered exit to Factory (range 11) 13398 | -5/Factory | Cargo convoy interrupted 14178 | -5/Factory | Entered Upper Caves 14274 | -5/Upper Caves | Activated DRS Beacon 14546 | -5/Upper Caves | Encountered a Warlord checkpoint 14684 | -5/Upper Caves | Spotted B-75 Beast 14705 | -5/Upper Caves | Revealed the true nature of CR-A16's Pointy Stick 14708 | -5/Upper Caves | Destroyed B-75 Beast 14745 | -5/Upper Caves | Discovered new exit (range 16) 14797 | -5/Upper Caves | Identified exit to Upper Caves 14819 | -5/Upper Caves | Entered another Upper Caves area 14824 | -5/Upper Caves | Discovered exit to Factory (range 13) 14865 | -5/Upper Caves | Spotted B-75 Beast 14870 | -5/Upper Caves | Destroyed B-75 Beast 14925 | -5/Upper Caves | Learned 4 Factory zone layouts 14983 | -5/Upper Caves | Encountered a Warlord checkpoint 14990 | -5/Upper Caves | Learned Factory garrison access intel 14992 | -5/Upper Caves | Found DCF Scrap (15 items) 15408 | -5/Upper Caves | Attracted the attention of an 0b10 checkpoint 15444 | -5/Upper Caves | Discovered new exit (range 20) 15454 | -5/Upper Caves | Identified exit to Warlord 15455 | -5/Upper Caves | Entered Warlord 15476 | -5/Warlord | System corruption cleaned by Quarantine Array 15701 | -5/Warlord | Visited the Vortex Lab 15702 | -5/Warlord | Warlord's base attacked by MAIN.C 15707 | -5/Warlord | Found Prototype Energy Gun 15707 | -5/Warlord | Identified Vortex Shotgun 15711 | -5/Warlord | Found Prototype Energy Gun 15711 | -5/Warlord | Identified Vortex Rifle 15721 | -5/Warlord | Found Vortex Shotgun 15775 | -5/Warlord | Found Prototype Processor 15779 | -5/Warlord | Found Prototype Processor 15874 | -5/Warlord | Identified Exp. Armor Integrity Analyzer 15878 | -5/Warlord | Identified Exp. Targeting Computer 15915 | -5/Warlord | Met Warlord 16009 | -5/Warlord | Lost 3 allies 16052 | -5/Warlord | Warlord forces counterattacked 16089 | -5/Warlord | Spotted Striker 16158 | -5/Warlord | Lost 10 allies 16159 | -5/Warlord | Spotted Executioner 16223 | -5/Warlord | Spotted Executioner 16253 | -5/Warlord | Spotted Striker 16299 | -5/Warlord | Spotted Executioner 16301 | -5/Warlord | Lost 22 allies 16329 | -5/Warlord | Spotted Striker 16377 | -5/Warlord | Warlord base infiltrated, sounded retreat 16411 | -5/Warlord | Spotted Executioner 16417 | -5/Warlord | Spotted Executioner 16431 | -5/Warlord | Found Prototype Processor 16431 | -5/Warlord | Identified Exp. Core Analyzer 16453 | -5/Warlord | Found Prototype Device 16453 | -5/Warlord | Identified Exp. Shock Absorption System 16472 | -5/Warlord | Spotted Striker 16472 | -5/Warlord | Spotted Executioner 16484 | -5/Warlord | Spotted Executioner 16501 | -5/Warlord | Found Prototype Processor 16501 | -5/Warlord | Identified Exp. Melee Analysis Suite 16523 | -5/Warlord | Spotted Executioner 16532 | -5/Warlord | Lost 19 allies 16533 | -5/Warlord | Discovered new exit (range 15) 16540 | -5/Warlord | Identified exit to Proximity Caves 16592 | -5/Warlord | Entered Proximity Caves 16595 | -4/Proximity Caves | Lost 6 allies 16679 | -4/Proximity Caves | Spotted B-86 Titan 16681 | -4/Proximity Caves | Destroyed B-86 Titan 17021 | -4/Proximity Caves | Learned Research security intel 17633 | -4/Proximity Caves | Discovered exit to Factory (range 3) 17660 | -4/Proximity Caves | Entered Factory 17660 | -4/Factory | Evolved 2 slots: Propulsion x1, Utility x1 17662 | -4/Factory | Loaded intel: 4 garrison access locations 18061 | -4/Factory | Found Gamma Bomb Array 19283 | -4/Factory | Discovered new exit (range 19) 19372 | -4/Factory | Identified exit to Upper Caves 19374 | -4/Factory | Discovered new exit (range 19) 19403 | -4/Factory | Identified exit to Research 19410 | -4/Factory | First assault squad dispatched 19471 | -4/Factory | Entered Upper Caves 19526 | -4/Upper Caves | Encountered a Warlord checkpoint 19546 | -4/Upper Caves | Learned Research stockpile data 19637 | -4/Upper Caves | Learned 4 Research zone layouts 19795 | -4/Upper Caves | Found Alien Artifact 19795 | -4/Upper Caves | Identified Dimensional Node Initializer 19795 | -4/Upper Caves | Initialized slip node 20073 | -4/Upper Caves | Discovered new exit (range 19) 20095 | -4/Upper Caves | Identified exit to Upper Caves 20109 | -4/Upper Caves | Entered another Upper Caves area 20866 | -4/Upper Caves | Discovered new exit (range 6) 20870 | -4/Upper Caves | Identified exit to Zhirov 20972 | -4/Upper Caves | Learned 4 Research zone layouts 21152 | -4/Upper Caves | Learned 4 Research zone layouts 21162 | -4/Upper Caves | Entered Zhirov 21162 | -4/Zhirov | Discovered new exit (range 3) 21170 | -4/Zhirov | Met Zhirov 21179 | -4/Zhirov | Learned location of Testing (-2) 21179 | -4/Zhirov | Learned location of Command (-1) 21181 | -4/Zhirov | Zhirov requested help retrieving the SGEMP Prototype 21187 | -4/Zhirov | Found Alien Artifact 21187 | -4/Zhirov | Identified Integrated Dissipator 21187 | -4/Zhirov | Installed Integrated Dissipator, increased core heat dissipation (+20) 21195 | -4/Zhirov | Found Alien Artifact 21280 | -4/Zhirov | Identified exit to Proximity Caves 21284 | -4/Zhirov | Entered Proximity Caves 22163 | -3/Proximity Caves | Discovered exit to Research (range 19) 22177 | -3/Proximity Caves | Entered Research 22177 | -3/Research | Evolved 2 slots: Utility x1, Weapon x1 22224 | -3/Research | Spotted B-86 Titan 22237 | -3/Research | Destroyed B-86 Titan 22353 | -3/Research | Found Gamma Bomb Array 22529 | -3/Research | Identified exit to Quarantine 22881 | -3/Research | Discovered new exit (range 8) 22954 | -3/Research | Fabricated Exp. Optical Array? 22976 | -3/Research | Assembled infested ambush trap array 23037 | -3/Research | Entered Quarantine 23210 | -3/Quarantine | Cryocooling Duct disabled 23225 | -3/Quarantine | Ambient heat levels rising (+20) 23225 | -3/Quarantine | Non-combat units ordered to evacuate 23300 | -3/Quarantine | Found Dimensional Node Initializer 23303 | -3/Quarantine | Found Alien Artifact 23308 | -3/Quarantine | Found Dimensional Node Initializer 23308 | -3/Quarantine | Initialized slip node 23309 | -3/Quarantine | Identified Transdimensional Reconstructor 23309 | -3/Quarantine | Warped through subspace to slip node 23312 | -3/Quarantine | Identified Hpw. Transdimensional Reconstructor 23312 | -3/Quarantine | Warped through subspace to slip node 23318 | -3/Quarantine | Found Transdimensional Reconstructor 23318 | -3/Quarantine | Warped through subspace to slip node 23327 | -3/Quarantine | Found Transdimensional Reconstructor 23327 | -3/Quarantine | Warped through subspace to slip node 23328 | -3/Quarantine | Found Dimensional Node Initializer 23328 | -3/Quarantine | Initialized slip node 23332 | -3/Quarantine | Found Hpw. Transdimensional Reconstructor 23345 | -3/Quarantine | Spotted Alpha 7 23410 | -3/Quarantine | Found Fusion Bomb Launcher 23465 | -3/Quarantine | Found Alien Artifact 23618 | -3/Quarantine | Discovered new exit (range 10) 23794 | -3/Quarantine | Spotted Fortress 23847 | -3/Quarantine | Discovered new exit (range 7) 23847 | -3/Quarantine | Discovered new exit (range 6) 23849 | -3/Quarantine | Identified exit to Protoforge 23853 | -3/Quarantine | Entered Protoforge 23912 | -3/Protoforge | Spotted Hotshot 23912 | -3/Protoforge | Spotted Hotshot 23960 | -3/Protoforge | Spotted Hotshot 23969 | -3/Protoforge | Spotted Hotshot 23969 | -3/Protoforge | Spotted Hotshot 23987 | -3/Protoforge | Destroyed Hotshot 23989 | -3/Protoforge | Destroyed Hotshot 24004 | -3/Protoforge | Destroyed Hotshot 24211 | -3/Protoforge | Spotted Overlord 24389 | -3/Protoforge | Destroyed Hotshot 24429 | -3/Protoforge | Destroyed Hotshot 24441 | -3/Protoforge | Spotted Hotshot 24446 | -3/Protoforge | Destroyed Hotshot 24471 | -3/Protoforge | Spotted Hotshot 24471 | -3/Protoforge | Destroyed Hotshot 24495 | -3/Protoforge | Spotted Hotshot 24830 | -3/Protoforge | Superfortress began startup sequence 25064 | -3/Protoforge | Spotted B-86 Titan 25064 | -3/Protoforge | Destroyed B-86 Titan 25088 | -3/Protoforge | Spotted AP7-3 25266 | -3/Protoforge | Found Prototype Device 25271 | -3/Protoforge | Identified Cep. Weapon Articulator 25331 | -3/Protoforge | Spotted Immortal 25388 | -3/Protoforge | Found Prototype Device 25388 | -3/Protoforge | Identified Crosscalibrator 25395 | -3/Protoforge | Destroyed 10 combat bots 25435 | -3/Protoforge | Spotted Decapitator 25435 | -3/Protoforge | Spotted Decapitator 25435 | -3/Protoforge | Spotted Decapitator 25435 | -3/Protoforge | Spotted Decapitator 25449 | -3/Protoforge | Destroyed Immortal 25469 | -3/Protoforge | Scanned by Researcher 25522 | -3/Protoforge | Destroyed Decapitator 25524 | -3/Protoforge | Destroyed Decapitator 25526 | -3/Protoforge | Destroyed Decapitator 25534 | -3/Protoforge | Destroyed Decapitator 25581 | -3/Protoforge | Found Prototype Power Core 25585 | -3/Protoforge | Found Prototype Power Core 25586 | -3/Protoforge | Identified Cep. Zero-point Core (x2) 25603 | -3/Protoforge | First assault squad dispatched 25700 | -3/Protoforge | Spotted Decapitator 25701 | -3/Protoforge | Spotted Decapitator 25701 | -3/Protoforge | Spotted V004-x 25701 | -3/Protoforge | Spotted Decapitator 25717 | -3/Protoforge | Found Prototype Device 25719 | -3/Protoforge | Found Prototype Device 25722 | -3/Protoforge | Identified Cep. Phase Shift Module (x2) 25722 | -3/Protoforge | Found Prototype Device 25724 | -3/Protoforge | Found Prototype Device 25732 | -3/Protoforge | Identified Exp. EM Disruption Field (x2) 25741 | -3/Protoforge | Found Faulty Cep. Reaction Jets 25758 | -3/Protoforge | Found Prototype Device 25762 | -3/Protoforge | Found Prototype Device 25773 | -3/Protoforge | Found Prototype Device 25784 | -3/Protoforge | Identified Exp. Remote Shield (x3) 25793 | -3/Protoforge | Found Cep. Energy Mantle 26003 | -3/Protoforge | System corruption reached 10% 26080 | -3/Protoforge | Spotted V657-r 26096 | -3/Protoforge | Spotted Decapitator 26096 | -3/Protoforge | Spotted Decapitator 26096 | -3/Protoforge | Spotted Decapitator 26096 | -3/Protoforge | Spotted Decapitator 26109 | -3/Protoforge | Destroyed Decapitator 26112 | -3/Protoforge | Destroyed Decapitator 26122 | -3/Protoforge | Destroyed Decapitator 26124 | -3/Protoforge | Destroyed Decapitator 26154 | -3/Protoforge | Spotted Immortal 26154 | -3/Protoforge | Spotted Immortal 26221 | -3/Protoforge | Found Cep. Chromion Battery 26228 | -3/Protoforge | Found Cep. NT7 Matterbank 26241 | -3/Protoforge | Found Cep. Antigrav Storage Unit 26243 | -3/Protoforge | Found Cep. NT7 Matterbank 26245 | -3/Protoforge | Found Cep. Chromion Battery 26250 | -3/Protoforge | Found Cep. Chromion Battery 26253 | -3/Protoforge | Found Prototype Device 26257 | -3/Protoforge | Identified Cep. Matter Streamer 26259 | -3/Protoforge | Found Faulty Cep. Matter Streamer 26261 | -3/Protoforge | Found Faulty Cep. Matter Streamer 26353 | -3/Protoforge | Spotted AP7-3 26353 | -3/Protoforge | Spotted AP7-3 26377 | -3/Protoforge | Destroyed AP7-3 26393 | -3/Protoforge | Destroyed AP7-3 26407 | -3/Protoforge | Found Prototype Device 26407 | -3/Protoforge | Identified Exp. ECM Suite 26409 | -3/Protoforge | Found Prototype Processor 26409 | -3/Protoforge | Identified Exp. Target Analyzer 26425 | -3/Protoforge | Identified Subatomic Replicator 26425 | -3/Protoforge | Used Subatomic Replicator to replicate Cep. Energy Mantle 26443 | -3/Protoforge | Found Faulty Cep. Core Analysis Suite 26445 | -3/Protoforge | Found Faulty Cep. Core Analysis Suite 26448 | -3/Protoforge | Found Prototype Device 26450 | -3/Protoforge | Found Prototype Device 26456 | -3/Protoforge | Identified Cep. Thermoelectric Network (x2) 26805 | -3/Protoforge | Spotted V950-n 26814 | -3/Protoforge | Destroyed Immortal 26820 | -3/Protoforge | Destroyed Immortal 26843 | -3/Protoforge | Spotted V510-e 26846 | -3/Protoforge | Spotted V112-p 26863 | -3/Protoforge | Destroyed V112-p 26896 | -3/Protoforge | Destroyed V950-n 26903 | -3/Protoforge | Destroyed V510-e 26974 | -3/Protoforge | Found Adv. Powered Armor 26989 | -3/Protoforge | Found Prototype Device 26989 | -3/Protoforge | Identified Exp. EM Shield 26998 | -3/Protoforge | Found Prototype Device 26998 | -3/Protoforge | Identified Cep. Antimissile System 27002 | -3/Protoforge | Found Spectral Analyzer 27007 | -3/Protoforge | Found Prototype Device 27007 | -3/Protoforge | Identified Exp. Thermal Defense Suite 27012 | -3/Protoforge | Found Prototype Processor 27012 | -3/Protoforge | Identified Exp. Melee Analysis Suite 27158 | -3/Protoforge | Found Cep. Arcsight Missile Launcher 27188 | -3/Protoforge | Found Exp. Active Sensor Suite 27246 | -3/Protoforge | Spotted V740-t 27246 | -3/Protoforge | Spotted V396-q 27246 | -3/Protoforge | Spotted V100-v 27247 | -3/Protoforge | Spotted V458-b 27252 | -3/Protoforge | Found Prototype Energy Gun 27272 | -3/Protoforge | Identified Cep. Lightning Penetrator 27278 | -3/Protoforge | Found Prototype Energy Gun 27297 | -3/Protoforge | Identified Cep. Disintegration Ray 27367 | -3/Protoforge | Destroyed V100-v 27371 | -3/Protoforge | Destroyed V396-q 27392 | -3/Protoforge | Destroyed 14 combat bots 27395 | -3/Protoforge | Destroyed V458-b 27397 | -3/Protoforge | Destroyed V740-t 27405 | -3/Protoforge | Found Prototype Device 27405 | -3/Protoforge | Identified Exp. Focal Shield 27492 | -3/Protoforge | Found Cep. XC Strikerail 27534 | -3/Protoforge | Destroyed 7 combat bots 27612 | -3/Protoforge | Spotted Executioner 27623 | -3/Protoforge | Spotted Decapitator 27632 | -3/Protoforge | Core integrity fell below 50% 27635 | -3/Protoforge | Spotted Executioner 27637 | -3/Protoforge | Destroyed Decapitator 27645 | -3/Protoforge | Spotted Decapitator 27661 | -3/Protoforge | Spotted Executioner 27673 | -3/Protoforge | Spotted Striker 27696 | -3/Protoforge | System corruption reached 30% 27697 | -3/Protoforge | Spotted Striker 27700 | -3/Protoforge | Spotted Immortal 27731 | -3/Protoforge | Lost 15 parts (2p7u6w) 27760 | -3/Protoforge | Found Cld. Directed Potential Cannon 27762 | -3/Protoforge | Destroyed Striker 27766 | -3/Protoforge | Found Cep. Blasthammer 27797 | -3/Protoforge | Found Cep. Chromion Battery 27799 | -3/Protoforge | Found Cep. Chromion Battery 27800 | -3/Protoforge | Found Cep. NT7 Matterbank 27812 | -3/Protoforge | Destroyed Executioner 27813 | -3/Protoforge | Core integrity fell below 20% 27826 | -3/Protoforge | Destroyed Executioner 27920 | -3/Protoforge | Destroyed Immortal 27959 | -3/Protoforge | High security lockdown imminent 27980 | -3/Protoforge | Destroyed 7 combat bots 28016 | -3/Protoforge | Found Cep. Rapid Grenade Launcher 28039 | -3/Protoforge | High security lockdown engaged 28048 | -3/Protoforge | Build established: Gunner 28071 | -3/Protoforge | Spotted Decapitator 28081 | -3/Protoforge | Destroyed 7 combat bots 28081 | -3/Protoforge | Destroyed Decapitator 28090 | -3/Protoforge | Destroyed Striker 28110 | -3/Protoforge | Spotted V478-r 28110 | -3/Protoforge | Spotted V892-w 28112 | -3/Protoforge | Found Cep. Network Penetrator 28123 | -3/Protoforge | Destroyed V657-r 28168 | -3/Protoforge | Destroyed V478-r 28187 | -3/Protoforge | Destroyed V892-w 28250 | -3/Protoforge | Destroyed V004-x 28292 | -3/Protoforge | Destroyed 11 combat bots 28300 | -3/Protoforge | Destroyed Investigator 28478 | -3/Protoforge | Build established: Tank 28537 | -3/Protoforge | Destroyed 11 combat bots 28573 | -3/Protoforge | Spotted Striker 28587 | -3/Protoforge | Destroyed Striker 28591 | -3/Protoforge | Destroyed by H-77 Assassin with Coil Gun Last Messages --------------- 28565_ Acquired 7 matter. 28565_ Acquired 32 matter. 28571_ P-80 Master destroyed. 28572_ Acquired 23 matter. 28572_ Acquired 17 matter. 28574_ P-80 Master destroyed. 28574_ H-77 Assassin destroyed. 28575_ Acquired 22 matter. 28576_ Knocked back. 28577_ Acquired 6 matter. 28579_ Acquired 4 matter. 28579_ I-47 Archangel destroyed. 28581_ Cep. Matter Streamer destroyed. 28585_ System corrupted: Cep. Rapid Grenade Launcher rejected. 28585_ Acquired Cep. Rapid Grenade Launcher. 28587_ Striker destroyed. 28588_ Slug penetrates Reinforced Barrier. 28590_ The unstable cave ceiling collapses. 28590_ Penetrated by Slug. 28591_ Arcsight Missile intercepted. Map ----- +----------------------------------------------------+ | ??????????????????#################??????????????? | | ??????????????????#"" "# """"#""""#??????????????? | | ??????????????????#" " " " " "#??????????????? | | ??????????????????#" " " "#??????????????? | | ??????????????????#" " l " ! "#??????????????? | | ??????????????????##"" ""##??????????????? | | ################### ################ | | ^ | | | | ^ ^^ | | ################### ################ | | ??????????????????##"" ##??????????????? | | ??????????????????# ! #??????????????? | | ??????????????????# = #??????????????? | | ??????????????????#" #??????????????? | | ??????????????????#"" # #??????????????? | | ??????????????????####### #"#####??????????????? | | ????????????????????????# =# #????????????????? | | ????????????????????????#= # #???????????????? | | ???????????????????????## # ##???????????????? | | ???????????????????????#;= !## ##????????????????? | | ??????????????????????# # #?##?????????????????? | | ??????????????????????###![ #????????????????????? | | ????????????????????????#! #????????????????????? | | ????????????????????????# = ####################?? | | ????????????????????????#@ ## | | ????????????????????????# h | | ????????????????????????#% h i # | | ????????????????????????## # ############## ##? | | ?????????????????????????##### ???????????# #?? | | ?????????????????????????????? ##??????????#[[ #?? | | ??????????????????????????????##???????????# #?? | | ???????????????????????????????????????????# #?? | | ???????????????????????????????????????????# ### | | ???????????????????????????????????????????" " | | ???????????????????????????????????????????# "% | | ???????????????????????????????????????????#=[ ### | | ???????????????????????????????????????????#% ?? | | ???????????????????????????????????????????# #?? | | ???????????????????????????????????????????# #?? | | ???????????????????????????????????????????# #?? | | ???????????????????????????????????????????# %!#?? | | ???????????????????????????????????????????# !=#?? | | ???????????????????????????????????????????#!*!#?? | | ###??????##????????????##############??????#[%*#?? | | """######"#????????????#""""""""""""#??????# [#?? | | " # # #????????????#"!!!! ! !!!"#??????# =#?? | | #????????#####" ! !! ! !"#??????#% %#?? | | #????????#"""### """""""###??????# % #?? | | ## #######????#" # "#???????#% %#?? | +----------------------------------------------------+ Best States ------------- Heat Dissipation 94 Energy Generation 74 Energy Capacity 2522 Matter Stores 300 Matter Capacity 300 Sight Range 24 Robot Scan Range 16 Terrain Scan Density 10 Jamming Range 16 Armor Coverage 1200 Resistance: KI 10 Resistance: EM 75 Propulsion Shielding 33 Weapon Shielding 100 Point Defense Rating 480 Phase Shifting 25 Evasion (%) 106 Targeting Accuracy 30 Target Analysis 10 Core Analysis 11 Recoil Reduction 5 Item Schematics ----------------- Assault Drone Bay | -4/Zhirov | Free Exp. Heat Sink | -4/Zhirov | Free Exp. Optical Array | -4/Zhirov | Free Imp. Arc Thrower | -4/Zhirov | Free Hvy. Proton Missile Launcher | -3/Protoforge | Archive Thunder Hammer | -3/Protoforge | Archive Exp. Coolant Injector | -3/Protoforge | Archive Exp. Thermal Shield | -3/Protoforge | Archive Helical Railgun | -3/Protoforge | Archive Adv. Myomer Leg | -3/Protoforge | Archive Adv. Matter Compressor | -3/Protoforge | Archive Adv. EM Shield | -3/Protoforge | Archive Shock Maul | -3/Protoforge | Archive Robot Schematics ------------------ B-60 Warrior | -3/Protoforge | Archive R-10 Processor | -3/Protoforge | Archive C-55 Analyst | -3/Protoforge | Archive Fabricated ------------ Exp. Optical Array | x1 | -3/Research Repaired ---------- Lgt. Treads | 12% | -8/Materials Alien Tech Used ----------------- Dimensional Node Initializer Integrated Dissipator Transdimensional Reconstructor High-powered Transdimensional Reconstructor Subatomic Replicator Achievements -------------- None Challenges ------------ None Game ------ Seed TechBombRouter Manual? 0 Play Time 04:51:11 Cumulative 1527.9 hours Start 2025.05.30 @ 23:47:18 End 2025.05.31 @ 22:54:24 Sessions 5 Manual Loads 0 Difficulty Rogue Special Mode None Game No. 1086 Rogue 1046 Adventurer 40 Explorer 0 Win Type - Total 194 Types 83/9/74/2/1/4/16/2/1/2 Lore% 96 Gallery% 97 Achievement% 87 Wizard Run 0 Options --------- Layout 0 ASCII 0 Keyboard 0 Movement Numpad Keybinds 0 Fullscreen 0 Font 20/Terminus Map View 76x50 Zoom Use 0% Tactical HUD 1 Map Filters NONE Filters NONE Steam 1 RUN: d6c070ae-ce63-4dba-8cb2-556a6e6d3475